Cogmind - Beta 10.1 @@@ ROGUE MODE // 2021.06.26 @ 10:53:08 // Winter2019/RPGLIKE Player: Farfid Result: Assimilated 0b10! Performance ------------- Evolutions (9) 4500 Regions Visited (26) 5200 Robots Destroyed (1179) 5895 Value Destroyed (66618) 66618 Prototype IDs (99) 1980 Alien Tech Used (5) 1000 Bonus (83170) 83170 TOTAL SCORE: 168363 Bonus ------- Triggered High Security 1000 High Alert Combat Kills 48174 Follower Combat Kills 1847 Entered Garrisons 200 Used RIF Installer 500 Network Hubs Disabled 200 Aligned with FarCom 300 Met R17 at Cetus 500 Used Core Reset Matrix 3000 Hacked Protovariant 1000 Scanned by Researcher 500 Acquired SGEMP 2000 Destroyed MAIN.C Guards 500 Met MAIN.C 5000 Destroyed MAIN.C Shell 5000 Destroyed MAIN.C 10000 Used 0b10 Conduit 2000 Win 3000 Friendly Fire -1551 Cogmind --------- Core Integrity 991/1200 Matter 525/525 Energy 1591/1600 System Corruption 0% Temperature Cool (8) Movement Hovering (42) Location 0b10 Command Parts ------- > --- POWER (2) -------- Improved Quantum Reactor Improved Quantum Reactor > --- PROPULSION (6) --- Cooled Aerolev Unit Improved Antigrav System Antigrav Array Combat Linear Gravjet Combat Linear Gravjet > --- UTILITY (12) ----- Experimental Energy Well Advanced Salvage Targeting Computer Experimental Targeting Computer Experimental Target Analyzer Experimental Core Analyzer Recoil Nullifier Advanced Kinecellerator Improved Weapon Cycler Advanced Reaction Control System AEGIS Remote Shield Improved System Restoration Module Long-range Tractor Beam > --- WEAPON (6) ------- Multirail Multirail Multirail Multirail Multirail Multirail > --- INVENTORY (6) ---- Protomatter-79 Protomatter-78 Protomatter-78 Protomatter-78 SGEMP Prototype Peak State ------------ > --- POWER ------------ Improved Quantum Reactor Improved Quantum Reactor > --- PROPULSION ------- Cooled Aerolev Unit Improved Antigrav System Improved Antigrav System Antigrav Array Combat Linear Gravjet > --- UTILITY ---------- Experimental Energy Well Advanced Salvage Targeting Computer Experimental Targeting Computer Experimental Target Analyzer Experimental Core Analyzer Recoil Nullifier Advanced Kinecellerator Improved Weapon Cycler Advanced Reaction Control System Heavy Regenerative Plating AEGIS Remote Shield > --- WEAPON ----------- Multirail Multirail Multirail Multirail Multirail Multirail > --- INVENTORY -------- Protomatter Protomatter Protomatter Protomatter Protomatter Improved System Restoration Module [Rating: 240] Favorites ----------- Power Improved Quantum Reactor Engine F-cell Engine Power Core Light Nuclear Core Reactor Improved Quantum Reactor Propulsion Antigrav Array Treads Light Treads Wheel Wheel Hover Unit Antigrav Array Flight Unit Cesium-ion Thruster Utility Experimental Targeting Computer Device Recoil Nullifier Storage Experimental Energy Well Processor Experimental Targeting Computer Hackware Experimental System Shield Protection Layered Light Armor Plating Weapon Multirail Energy Gun Phase Gun Energy Cannon Enhanced Nova Cannon Ballistic Gun Multirail Ballistic Cannon Mini Assault Cannon Launcher Micro-nuke Launcher Slashing Weapon Segregator Piercing Weapon Plasma Lance Build | -11 -10 -10 -9 -9 -9 -8 -8 -7 -7 -7 -7 -7 -6 -5 -4 -4 -4 -4 -4 -3 -3 -2 -2 -2 -1 -1 ------- Run | Scr Mat Min Mat Min Exi Min Mat Fac Was Fac Sto Gar Fac Fac Fac Ext Cet Arc Hub Res Tes Res Qua Sec Acc Com Slots Evolved 22 | 3 . . 2 2 . . 2 1 . 1 . . 3 3 . 1 . . . 2 . 1 1 . . . Power 1 | . . . . . . . . . . . . . 1 . . . . . . . . . . . . . Propulsion 5 | 1 . . . . . . . 1 . . . . 1 1 . . . . . 1 . . . . . . Utility 11 | 1 . . 1 2 . . 1 . . 1 . . 1 1 . 1 . . . . . 1 1 . . . Weapon 5 | 1 . . 1 . . . 1 . . . . . . 1 . . . . . 1 . . . . . . Parts Attached 366 | 5 1 5 5 7 4 3 4 3 1 7 13 1 27 23 4 5 10 . 3 22 20 5 2 21 6 159 Power 26 | 1 . 1 . 1 . . . . 1 . 3 . 3 2 1 1 2 . . 3 1 . . 1 . 5 Engine 9 | 1 . . . 1 . . . . . . 2 . 2 2 . . 1 . . . . . . . . . Core 4 | . . 1 . . . . . . . . . . 1 . 1 . . . . 1 . . . . . . Reactor 13 | . . . . . . . . . 1 . 1 . . . . 1 1 . . 2 1 . . 1 . 5 Propulsion 67 | 2 . . 2 2 . 2 . 1 . 1 5 . 4 5 1 1 . . . 5 2 . . . . 34 Treads 4 | . . . 2 2 . . . . . . . . . . . . . . . . . . . . . . Leg . | . . . . . . . . . . . . . . . . . . . . . . . . . . . Wheel 7 | 2 . . . . . 2 . 1 . 1 1 . . . . . . . . . . . . . . . Hover 40 | . . . . . . . . . . . 4 . 4 5 1 1 . . . 5 2 . . . . 18 Flight 16 | . . . . . . . . . . . . . . . . . . . . . . . . . . 16 Utility 171 | . 1 2 2 4 3 1 1 2 . 3 1 . 18 10 2 3 . . 3 7 10 5 2 18 . 73 Device 123 | . 1 1 . 3 3 1 . 1 . 2 1 . 12 8 1 1 . . 2 7 9 2 2 14 . 52 Storage 5 | . . . . . . . . . . . . . . . . . . . . . . . . . . 5 Processor 30 | . . 1 1 . . . 1 . . 1 . . 6 2 1 . . . 1 . . 2 . 4 . 10 Hackware 1 | . . . . . . . . . . . . . . . . . . . . . . 1 . . . . Protection 12 | . . . 1 1 . . . 1 . . . . . . . 2 . . . . 1 . . . . 6 Artifact . | . . . . . . . . . . . . . . . . . . . . . . . . . . . Weapon 102 | 2 . 2 1 . 1 . 3 . . 3 4 1 2 6 . . 8 . . 7 7 . . 2 6 47 Energy Gun 5 | . . . . . . . . . . . . . . . . . . . . . . . . . . 5 Energy Cannon 10 | . . . . . . . . . . . . . . . . . . . . . . . . . 1 9 Ballistic Gun 63 | 2 . 2 1 . 1 . 3 . . . 1 . . 5 . . 6 . . 5 6 . . 2 4 25 Ballistic Cannon 12 | . . . . . . . . . . 3 3 1 2 1 . . . . . 1 . . . . 1 . Launcher 5 | . . . . . . . . . . . . . . . . . 2 . . 1 . . . . . 2 Special Weapon . | . . . . . . . . . . . . . . . . . . . . . . . . . . . Impact Weapon . | . . . . . . . . . . . . . . . . . . . . . . . . . . . Slashing Weapon 3 | . . . . . . . . . . . . . . . . . . . . . 1 . . . . 2 Piercing Weapon 4 | . . . . . . . . . . . . . . . . . . . . . . . . . . 4 Special Melee Weapon . | . . . . . . . . . . . . . . . . . . . . . . . . . . . Unidentified Prototypes 53 | . . . . . 3 . . . . 1 1 . 4 . 1 2 1 . 1 9 7 2 1 7 . 13 Parts Lost 1 | . . . . . . . . . . . . . . . . . . . . . . . . . . 1 Power . | . . . . . . . . . . . . . . . . . . . . . . . . . . . Propulsion . | . . . . . . . . . . . . . . . . . . . . . . . . . . . Utility 1 | . . . . . . . . . . . . . . . . . . . . . . . . . . 1 Weapon . | . . . . . . . . . . . . . . . . . . . . . . . . . . . Highest Loss Streak 1 | . . . . . . . . . . . . . . . . . . . . . . . . . . 1 Average Slot Usage (%) 94 | . 82 98 99 99 100 99 100 100 100 99 98 100 92 94 95 94 95 95 95 91 91 91 92 91 92 92 Engine 2 | . 14 3 . 4 9 9 8 7 2 . 1 6 8 9 5 4 3 . . . . . . . . . Core 1 | . . 10 13 5 . . . . . . . . 1 . 2 3 . . . . . . . . . . Reactor 4 | . . . . . . . . . 4 6 4 . . . . . 4 9 9 8 8 8 7 7 7 6 Treads 1 | . . . 4 20 18 14 . . . . . . . . . . . . . . . . . . . . Wheel 3 | . 28 28 21 . . 3 16 18 21 20 14 . . . . . . . . . . . . . . . Hover 12 | . . . . . . . . . . . 4 20 16 19 19 18 18 18 18 16 16 16 15 15 15 16 Device 26 | . 11 14 13 16 27 35 33 28 28 30 34 40 29 27 28 27 27 27 27 25 27 28 29 28 26 25 Processor 12 | . . 12 13 10 9 . . 7 7 9 11 6 10 13 14 13 13 13 13 12 12 12 15 16 19 16 Protection 1 | . . . 3 10 9 9 8 7 7 4 . . . . . . 4 4 4 4 1 . . . . . Ballistic Gun 21 | . 28 28 29 31 27 27 31 28 28 20 10 13 11 18 23 22 20 22 22 22 24 24 23 23 22 21 Ballistic Cannon 2 | . . . . . . . . . . 5 15 13 11 3 . . . . . . . . . . . . Naked Turns . | . . . . . . . . . . . . . . . . . . . . . . . . . . . Heaviest Build 114 | 9 10 12 20 28 30 31 34 37 44 48 44 39 59 67 66 74 86 86 86 101 110 93 97 106 113 114 Greatest Support 142 | 31 31 31 45 45 45 45 25 35 35 35 43 42 61 77 78 86 86 86 99 132 128 122 129 122 129 142 Greatest Overweight (x) 11 | . . . . 2 . 2 1 1 1 1 1 . 1 . . . . . . . . . . . . 11 Average Overweight (x) . | . . . . . . . 1 . 1 1 . . . . . . . . . . . . . . . . Largest Inventory Capacity 6 | 1 1 1 1 2 2 2 3 3 3 4 4 4 4 4 4 5 5 5 5 5 5 5 5 5 6 6 Average Capacity 4 | 1 1 1 1 1 2 2 2 3 3 3 4 4 4 4 4 4 5 5 5 5 5 5 5 5 5 6 Most Carried 6 | . 1 1 1 2 2 2 3 3 3 4 4 3 4 4 4 5 5 5 5 5 5 5 5 5 6 6 Average Carried 4 | . . . . 1 1 2 2 2 2 3 3 2 3 3 2 4 5 5 5 4 4 4 4 4 4 5 Final Capacity 6 | 1 1 1 1 2 2 2 3 3 3 4 4 4 4 4 4 5 5 5 5 5 5 5 5 5 6 6 Final Carried 6 | . 1 1 . 2 2 2 3 3 3 4 3 3 4 3 4 5 5 5 5 5 5 5 5 4 5 6 Class Distribution -------------------- 40% | Scavenger-Executioner 24% | Scavenger-Gunner 12% | Scavenger-Mutant 12% | Gunner 3% | Mutant Dominant Class ---------------- Mutant | -10/Materials Scavenger-Mutant | -10/Mines Scavenger-Mutant | -9/Materials Scavenger-Gunner | -9/Mines Scavenger-Gunner | -9/Exiles Scavenger-Gunner | -8/Mines Scavenger-Gunner | -8/Materials Scavenger-Gunner | -7/Factory Scavenger-Gunner | -7/Waste Scavenger-Gunner | -7/Factory Scavenger-Gunner | -7/Storage Scavenger-Mutant | -7/Garrison Gunner | -6/Factory Gunner | -5/Factory Gunner | -4/Factory Commander-Gunner | -4/Extension Scavenger-Gunner | -4/Cetus Scavenger-Gunner | -4/Archives Scavenger-Gunner | -4/Hub_04(d) Scavenger-Gunner | -3/Research Scavenger-Executioner | -3/Testing Scavenger-Executioner | -2/Research Scavenger-Mutant | -2/Quarantine Scavenger-Executioner | -2/Section 7 Scavenger-Executioner | -1/Access Scavenger-Executioner | -1/Command Resources | -11 -10 -10 -9 -9 -9 -8 -8 -7 -7 -7 -7 -7 -6 -5 -4 -4 -4 -4 -4 -3 -3 -2 -2 -2 -1 -1 ----------- Run | Scr Mat Min Mat Min Exi Min Mat Fac Was Fac Sto Gar Fac Fac Fac Ext Cet Arc Hub Res Tes Res Qua Sec Acc Com Matter Collected 33711 | 298 59 363 287 196 152 344 285 142 485 416 1624 379 985 1259 847 690 335 176 371 1292 1512 822 291 1731 3788 14582 Remotely 27655 | . 59 363 287 196 152 . . . . . . . . 706 847 690 335 176 371 1271 1512 822 291 1731 3788 14058 Salvage Created 75518 | . 47 793 737 293 152 380 540 155 1850 961 2691 680 2272 2766 2187 974 927 425 438 2477 2830 2554 1099 2749 8379 36162 Parts 3280 | . 4 44 33 22 6 22 37 10 44 58 147 22 80 134 115 92 39 23 44 152 151 128 39 173 511 1150 Haulers Intercepted 37 | . . . 1 . . . 2 . . 2 5 . 5 5 4 1 . . . 5 . 2 . . 5 . Recyclers Shooed 19 | . . 4 1 . . 1 . . . 1 2 . 1 2 1 . . . . 2 . 1 . . 2 1 Parts Field Recycled . | . . . . . . . . . . . . . . . . . . . . . . . . . . . Retrieved Matter . | . . . . . . . . . . . . . . . . . . . . . . . . . . . Parts Self-Destructed . | . . . . . . . . . . . . . . . . . . . . . . . . . . . Prevented . | . . . . . . . . . . . . . . . . . . . . . . . . . . . Kills | -11 -10 -10 -9 -9 -9 -8 -8 -7 -7 -7 -7 -7 -6 -5 -4 -4 -4 -4 -4 -3 -3 -2 -2 -2 -1 -1 ------- Run | Scr Mat Min Mat Min Exi Min Mat Fac Was Fac Sto Gar Fac Fac Fac Ext Cet Arc Hub Res Tes Res Qua Sec Acc Com Combat Hostiles Destroyed 946 | . 2 14 11 10 1 8 6 2 6 13 48 15 26 37 18 12 12 4 9 30 29 23 9 25 98 478 Guns 870 | . 2 14 11 10 1 6 6 2 6 10 24 7 17 34 18 12 4 4 9 30 29 23 9 25 97 460 Cannons 47 | . . . . . . . . . . 3 24 8 9 3 . . . . . . . . . . . . AOE 23 | . . . . . . 2 . . . . . . . . . . 2 . . . . . . . 1 18 Classes Destroyed 27 | . 1 5 2 . . . 3 . 1 2 4 . 1 . . 1 . . . 1 2 . . 1 . 3 Worker 53 | . . 2 . . . 4 1 . . 3 4 . . 5 . 1 . . 5 3 4 1 1 . 7 12 Builder 35 | . . . . . . . . . . 4 4 . 1 1 3 1 . . . 2 7 4 . 4 4 . Tunneler 4 | . . . . . . . 2 . . . . . . 1 . . . . . . . 1 . . . . Hauler 37 | . . . 1 . . . 2 . . 2 5 . 5 5 4 1 . . . 5 . 2 . . 5 . Recycler 41 | . . 6 1 . . 2 . 1 . 4 4 . 3 3 3 2 . . . 2 1 1 . 1 2 5 Carrier 7 | . . . . . . . . . . . . . . . . . . . . . . . . . . 7 Mechanic 18 | . . . . . . . . . . . 1 . . . . . . . . . . . . 2 . 15 Operator 4 | . . . . . . . . . . . 3 . 1 . . . . . . . . . . . . . Watcher 25 | . . . . . . . 1 . . 2 1 . 3 2 . 1 2 . 1 . 1 2 . 1 1 7 Swarmer 148 | . . 6 . 4 . 2 . . . 6 6 4 4 22 3 . . . 2 8 . 5 . 4 20 52 Saboteur 32 | . . . . . . . . . . . . . 1 . . . . . . . . . . . 1 30 Grunt 335 | . 2 5 7 5 . 6 1 . . 3 26 7 12 2 7 4 . . 3 8 15 6 6 3 47 160 Brawler 31 | . . . 1 1 . . . . . . 2 1 . . . . . . . . . 1 . . 2 23 Duelist 30 | . . . . . . . . . . 1 . 1 2 . . . . . . . . . . . . 26 Protector 15 | . . . . . . . . . . . 1 . 1 . . . . . . . . . . . 1 12 Researcher 3 | . . . . . . . . . . . . . . . . . . . . . 1 . 1 1 . . Sentry 81 | . . 2 3 . . . 4 2 . 2 8 2 4 6 6 3 . 4 4 7 6 3 3 1 5 6 Demolisher 15 | . . 1 . . . . . . . . . . . . . 1 . . . 2 . . . . . 11 Specialist 9 | . . . . . . . . . . . . . . . . . . . . . . . . . . 9 Hunter 86 | . . . . . . . 1 . . 1 2 . . 5 2 1 2 . . . 5 3 . 7 8 49 Programmer 98 | . . . . . . . . . . . 3 . 2 1 . 1 2 . . 2 . 5 . 5 11 66 Behemoth 10 | . . . . . . . . . . . . . . . . 2 . . . . . . . 1 3 4 Compactor 6 | . . . . . . . . . 6 . . . . . . . . . . . . . . . . . Cetus Guard 8 | . . . . . . . . . . . . . . . . . 8 . . . . . . . . . M Guard 2 | . . . . . . . . . . . . . . . . . . . . . . . . . . 2 Combat Programmer 2 | . . . . . . . . . . . . . . . . . . . . . . . . . . 2 Investigator 1 | . . . . . . . . . . . . . . . . . . . . . . . . . . 1 Striker 12 | . . . . . . . . . . . . . . . . . . . . 3 2 . . . . 7 Executioner 17 | . . . . . . . . . . . . . . . . . . . . . . . . 2 . 15 Alpha 7 5 | . . . . . . . . . . . . . . . . . . . . . 1 . . 2 . 2 Assembled 4 | . . . . . . . . . . . . . . . . . . . . . . . . . . 4 Thug 1 | . . . . . . . . . . . . . . 1 . . . . . . . . . . . . Best Kill Streak 85 | . 1 4 3 4 1 3 3 2 2 8 15 4 7 9 7 9 5 4 7 11 9 11 6 12 23 85 Combat Bots Only 85 | . 1 3 3 4 1 3 2 1 2 3 10 4 6 5 7 5 4 4 4 11 8 7 5 8 18 85 Max Kills in Single Turn 6 | . 1 1 1 2 1 3 3 1 1 3 2 2 2 4 2 4 3 1 4 4 3 3 2 3 4 6 Gunslinging 3 | . . . . 1 . . 1 . . . . . . 2 1 1 . . 1 3 1 2 1 1 2 3 Exploded 5 | . . . . . . 2 . . . . . . . . . . 1 . . . . . . . 1 5 Melee . | . . . . . . . . . . . . . . . . . . . . . . . . . . . Uniques/NPCs Destroyed 4 | . . . . . 1 . . . . . . . . . . 1 . . . . . . . . . 2 8R-AWN (-9/Exiles) A7 (-4/Extension) MAIN.C Shell (-1/Command) MAIN.C (-1/Command) Combat | -11 -10 -10 -9 -9 -9 -8 -8 -7 -7 -7 -7 -7 -6 -5 -4 -4 -4 -4 -4 -3 -3 -2 -2 -2 -1 -1 -------- Run | Scr Mat Min Mat Min Exi Min Mat Fac Was Fac Sto Gar Fac Fac Fac Ext Cet Arc Hub Res Tes Res Qua Sec Acc Com Damage Taken 20813 | . 127 421 376 180 611 191 97 275 . 563 1502 280 564 1741 793 776 272 58 541 837 1302 458 314 960 1316 6258 Core 16218 | . 104 338 312 127 469 149 65 160 . 396 1213 224 453 1380 616 610 200 45 393 634 1022 367 249 743 1024 4925 Absorbed by Shields 9760 | . . . . . . . . . . . . . . 38 279 285 97 20 192 301 475 168 115 571 1373 5846 Redirected to Core 14146 | . 74 254 226 111 422 105 55 151 . 385 942 166 366 1219 590 562 171 45 345 605 878 308 223 709 957 4277 Core Remaining (%) 86 | 100 . 95 . . . 100 96 . . . . 100 100 86 . . . . 60 . 62 . . 74 . 82 Volleys Fired 1322 | . 11 49 36 14 22 21 21 10 37 39 101 29 60 89 42 31 16 8 18 42 53 34 13 48 114 364 Largest 6 | . 2 2 3 3 3 3 4 4 4 4 4 4 4 5 5 5 5 5 5 6 6 6 6 6 6 6 Hottest 270 | . 40 46 69 69 69 76 99 99 99 124 174 154 154 186 162 162 168 170 170 211 218 218 218 238 270 270 Shots Fired 5945 | . 22 98 79 42 66 59 60 40 144 141 354 90 225 354 199 138 49 40 88 216 270 154 58 253 641 2065 Gun 5491 | . 22 98 79 42 66 59 60 40 144 112 159 48 110 312 199 138 42 40 88 216 270 154 58 253 635 2047 Cannon 437 | . . . . . . . . . . 29 195 42 115 42 . . . . . . . . . . 6 8 Launcher 17 | . . . . . . . . . . . . . . . . . 7 . . . . . . . . 10 Special . | . . . . . . . . . . . . . . . . . . . . . . . . . . . Kinetic 5916 | . 22 98 79 42 66 59 60 40 144 141 354 90 225 354 199 138 42 40 88 216 270 154 58 253 637 2047 Thermal 9 | . . . . . . . . . . . . . . . . . . . . . . . . . 4 5 Explosive 10 | . . . . . . . . . . . . . . . . . . . . . . . . . . 10 Electromagnetic 10 | . . . . . . . . . . . . . . . . . 7 . . . . . . . . 3 Robot Hit Streak 81 | . 6 24 16 9 14 9 23 12 31 21 29 17 23 36 26 50 21 21 50 28 73 31 32 58 74 81 Robot Miss Streak 6 | . 2 2 2 3 3 2 2 2 1 1 3 3 3 4 2 1 1 2 1 2 1 2 1 2 2 6 Penetration Max 2 | . . . . . . 1 2 . 1 2 2 1 2 2 2 1 . . 1 2 1 2 1 2 2 2 Secondary Targets 234 | . . 4 . 2 . . 1 . . . 1 . . 7 4 5 1 . 1 8 8 6 3 7 36 140 Max Gunslinging Chain 3 | . . 1 . 1 . . 1 . . . 1 . . 2 2 1 1 . 1 3 1 2 1 2 3 3 Shots Hit Robots 4287 | . 16 62 53 26 53 40 41 29 126 92 214 53 138 221 133 111 38 25 58 148 205 98 42 196 442 1627 Core Hits 3559 | . 4 29 20 13 12 20 19 8 24 41 105 22 73 84 60 42 24 11 30 69 97 67 28 105 432 2120 Critical Hits 1151 | . . . . . . 8 6 1 18 11 47 12 32 38 27 14 10 2 15 35 39 27 19 60 114 616 Critical Kills 375 | . . . . . . 2 2 1 5 5 21 3 14 12 11 5 2 1 7 20 17 10 7 16 33 181 Critical Parts Destroyed 598 | . . . . . . 6 4 . 1 6 26 8 18 25 15 5 8 1 7 15 20 17 12 28 67 309 Melee Attacks 3 | . . . . . . . . . . . . . . . . . . . . . . . . . . 3 Impact . | . . . . . . . . . . . . . . . . . . . . . . . . . . . Slashing . | . . . . . . . . . . . . . . . . . . . . . . . . . . . Piercing 3 | . . . . . . . . . . . . . . . . . . . . . . . . . . 3 Sneak Attacks . | . . . . . . . . . . . . . . . . . . . . . . . . . . . Combat Hostiles . | . . . . . . . . . . . . . . . . . . . . . . . . . . . Follow-up Attacks . | . . . . . . . . . . . . . . . . . . . . . . . . . . . Damage Inflicted 160446 | . 203 1132 765 497 828 1081 708 343 2282 1781 5532 1478 4084 5694 3973 3162 1951 722 2518 5174 7296 4197 1605 6355 16639 80446 Guns 149051 | . 203 954 765 497 828 775 708 343 2282 1424 2878 820 2363 4911 3973 3162 794 722 1829 5174 7008 4197 1605 6355 15920 78561 Cannons 6177 | . . . . . . . . . . 322 2654 658 1721 748 . . . . . . . . . . . 74 Explosions 4942 | . . 178 . . . 306 . . . 35 . . . 35 . . 1157 . 689 . 288 . . . 719 1535 Melee . | . . . . . . . . . . . . . . . . . . . . . . . . . . . Ramming 276 | . . . . . . . . . . . . . . . . . . . . . . . . . . 276 Kinetic 155154 | . 203 954 765 497 828 775 708 343 2282 1746 5532 1478 4084 5659 3973 3162 794 722 1829 5174 7008 4197 1605 6355 15920 78561 Thermal 801 | . . 178 . . . 306 . . . . . . . . . . . . . . 147 . . . 170 . Explosive 1570 | . . . . . . . . . . . . . . 35 . . . . . . . . . . . 1535 Electromagnetic 2645 | . . . . . . . . . . 35 . . . . . . 1157 . 689 . 141 . . . 549 74 Impact . | . . . . . . . . . . . . . . . . . . . . . . . . . . . Slashing . | . . . . . . . . . . . . . . . . . . . . . . . . . . . Piercing . | . . . . . . . . . . . . . . . . . . . . . . . . . . . Highest Corruption 25 | . 2 2 . . . . . . 24 25 25 19 . . 4 4 4 4 6 3 7 2 2 5 2 11 Average Corruption 7 | . 2 2 . . . . . . 12 24 20 16 . . 1 4 4 4 4 2 4 1 2 3 1 3 Corruption Purged 53 | . . . . . . . . . . . 6 4 . . . . . . . . . . . . . 43 Effects 612 | . . 6 . . . . . . 23 91 176 75 . . 5 26 6 1 10 19 30 . . 16 18 110 Message Errors 84 | . . 2 . . . . . . 2 8 12 13 . . . 5 1 . 2 3 5 . . 5 3 23 Matter Fused 53 | . . . . . . . . . 2 5 9 8 . . 1 4 1 . 1 4 7 . . 2 . 9 Heat Flow Errors 36 | . . 2 . . . . . . 2 6 5 7 . . . . . . . 2 . . . 1 3 8 Energy Discharges 26 | . . 1 . . . . . . 1 4 6 5 . . . 2 1 . 1 . 1 . . 1 . 3 Parts Rejected 5 | . . . . . . . . . . 1 1 1 . . . . 1 . 1 . . . . . . . Data Loss (minor) 33 | . . . . . . . . . . 9 7 3 . . . 1 . . 1 2 . . . . 1 9 Data Loss (major) 10 | . . . . . . . . . . 1 4 3 . . . . . . . . 1 . . . . 1 Misfires 13 | . . . . . . . . . . 5 5 2 . . . . . . . . 1 . . . . . Misdirections 46 | . . . . . . . . . 1 9 18 17 . . . . . . . . . . . . . 1 Targeting Errors 250 | . . 1 . . . . . . 13 36 91 13 . . 3 9 2 1 2 6 14 . . 7 11 41 Weapon Failures 56 | . . . . . . . . . 2 7 18 3 . . 1 5 . . 2 2 1 . . . . 15 Overload Shots . | . . . . . . . . . . . . . . . . . . . . . . . . . . . Overflow Damage 334 | . . 35 . . . 47 . . . 11 56 9 35 7 . . 15 . 10 . 2 . . . 10 97 Projectiles 118 | . . . . . . . . . . 11 56 9 35 7 . . . . . . . . . . . . Explosions 216 | . . 35 . . . 47 . . . . . . . . . . 15 . 10 . 2 . . . 10 97 Melee . | . . . . . . . . . . . . . . . . . . . . . . . . . . . Knockbacks 36 | . . . . . . . . . . 3 14 4 10 5 . . . . . . . . . . . . Impact . | . . . . . . . . . . . . . . . . . . . . . . . . . . . Kinetic 33 | . . . . . . . . . . 2 12 4 10 5 . . . . . . . . . . . . Secondary 3 | . . . . . . . . . . 1 2 . . . . . . . . . . . . . . . Self-Inflicted Damage 538 | . . . . . . . . . . . . . . . . . . . 98 . 24 . . . 77 339 Shots 5 | . . . . . . . . . . . . . . . . . . . 1 . 1 . . . 2 1 Rammed . | . . . . . . . . . . . . . . . . . . . . . . . . . . . Targets Rammed . | . . . . . . . . . . . . . . . . . . . . . . . . . . . Kicked . | . . . . . . . . . . . . . . . . . . . . . . . . . . . Crushed . | . . . . . . . . . . . . . . . . . . . . . . . . . . . Highest Temperature 424 | . . 272 30 123 221 37 37 46 244 337 403 229 162 208 52 11 72 63 93 424 135 8 . 205 135 216 Average Temperature 52 | . . 97 11 34 103 9 17 22 40 81 86 55 45 48 19 4 34 27 35 89 36 3 . 31 23 25 Received Heat Transfer 2619 | . 78 129 174 27 . 117 18 18 . 45 609 99 195 144 82 141 12 6 60 76 195 42 36 16 80 220 Effects 9 | . . . . . . . . . 3 1 1 . . . . . . . . 4 . . . . . . Shutdowns 3 | . . . . . . . . . . . 1 . . . . . . . . 2 . . . . . . Energy Bleed 2 | . . . . . . . . . . . . . . . . . . . . 2 . . . . . . Interference 3 | . . . . . . . . . 3 . . . . . . . . . . . . . . . . . Short Circuit 1 | . . . . . . . . . . 1 . . . . . . . . . . . . . . . . Siege Activations . | . . . . . . . . . . . . . . . . . . . . . . . . . . . Robots Corrupted 6 | . . . . . . . . . . . . . . . . . 6 . . . . . . . . . Combat Hostiles 6 | . . . . . . . . . . . . . . . . . 6 . . . . . . . . . Parts Fried 17 | . . . . . . . . . . . . . . . . . 14 . 1 . . . . . 2 . Impact Corruptions . | . . . . . . . . . . . . . . . . . . . . . . . . . . . Robots Melted . | . . . . . . . . . . . . . . . . . . . . . . . . . . . Combat Hostiles . | . . . . . . . . . . . . . . . . . . . . . . . . . . . Parts Melted 11 | . . . . . . . . 1 . . . . . . . 1 . . . . 2 . . 2 . 5 Heat Transferred 725 | . . 300 . . . 350 . . . . . . . . . . . . . . 25 . . . 50 . Parts Sabotaged 4 | . . . . . . . . . . . . . . . . . . . . . 4 . . . . . Parts Stolen . | . . . . . . . . . . . . . . . . . . . . . . . . . . . Parts Stripped . | . . . . . . . . . . . . . . . . . . . . . . . . . . . Power Chain Reactions 8 | . . . . . . . . . . 1 . . . . . . . . . . 3 . . . 4 . Missiles Intercepted . | . . . . . . . . . . . . . . . . . . . . . . . . . . . Alert | -11 -10 -10 -9 -9 -9 -8 -8 -7 -7 -7 -7 -7 -6 -5 -4 -4 -4 -4 -4 -3 -3 -2 -2 -2 -1 -1 ------- Run | Scr Mat Min Mat Min Exi Min Mat Fac Was Fac Sto Gar Fac Fac Fac Ext Cet Arc Hub Res Tes Res Qua Sec Acc Com Peak Influence 13897 | . 108 337 449 301 . 230 361 278 32 528 1638 1599 1287 1482 1379 921 812 494 1199 1386 1479 1436 723 840 3057 13897 Initial 1956 | . . 42 111 126 . . 61 163 32 18 239 1064 839 401 676 571 504 324 172 629 779 693 723 381 360 1956 Average 2922 | . 49 191 301 166 . 71 237 201 23 313 1036 1231 967 1006 1056 492 685 427 397 571 1041 964 587 544 1795 7999 Maximum Alert Level 5 | . . 1 2 1 . 1 1 1 . 2 5 4 4 4 4 3 3 2 4 4 4 4 3 3 5 5 Low Security (%) 11 | 100 100 54 14 70 . 84 36 33 100 22 . . . . . . . . 11 . . . . 2 . . Level 1 12 | . . 45 65 29 . 15 63 66 . 49 7 . . . . 42 . 32 61 7 . . . 20 1 . Level 2 13 | . . . 19 . . . . . . 28 13 . . 17 2 42 56 67 16 79 13 13 98 54 6 . Level 3 15 | . . . . . . . . . . . 33 34 71 42 50 15 43 . . 11 39 57 1 22 8 . Level 4 14 | . . . . . . . . . . . 38 65 28 40 47 . . . 11 1 46 28 . . 31 . Level 5 2 | . . . . . . . . . . . 7 . . . . . . . . . . . . . 34 1 High Security 30 | . . . . . . . . . . . . . . . . . . . . . . . . . 18 98 Max Security . | . . . . . . . . . . . . . . . . . . . . . . . . . . . Squads Dispatched 137 | . 2 1 . . . . 1 1 . 2 14 . 8 7 7 2 . . 4 5 13 5 2 4 21 38 Investigation 22 | . 1 1 . . . . . 1 . 1 1 . 1 3 4 . . . . 3 2 . . . 4 . Extermination 12 | . . . . . . . . . . 1 2 . 3 1 . . . . . . 1 1 1 1 1 . Reinforcement 34 | . 1 . . . . . 1 . . . 7 . 2 1 2 1 . . 1 2 6 2 1 2 3 2 Assault 64 | . . . . . . . . . . . 3 . 2 1 1 1 . . 1 . 4 2 . 1 12 36 Garrison 5 | . . . . . . . . . . . 1 . . 1 . . . . 2 . . . . . 1 . Intercept . | . . . . . . . . . . . . . . . . . . . . . . . . . . . Construction Impeded 5 | . . . . . . . 1 . . . 1 . . . . . . . . . . . . 1 2 . Haulers Reinforced 10 | . . . . . . . . . . . 3 . 2 . 1 . . . . 2 . 1 . . 1 . Stealth | -11 -10 -10 -9 -9 -9 -8 -8 -7 -7 -7 -7 -7 -6 -5 -4 -4 -4 -4 -4 -3 -3 -2 -2 -2 -1 -1 --------- Run | Scr Mat Min Mat Min Exi Min Mat Fac Was Fac Sto Gar Fac Fac Fac Ext Cet Arc Hub Res Tes Res Qua Sec Acc Com Distress Signals 63 | . . . . . . . . . . . 7 . 3 8 . 1 2 . 4 6 4 6 1 2 5 14 Communications Jammed . | . . . . . . . . . . . . . . . . . . . . . . . . . . . Distress Signals . | . . . . . . . . . . . . . . . . . . . . . . . . . . . Times Spotted 1326 | . 5 19 16 9 1 6 11 6 6 25 76 16 43 65 31 38 14 4 39 48 60 39 15 48 122 564 Peak Tracking Total 45 | . 3 5 5 4 3 3 4 2 2 6 7 6 8 9 11 6 5 1 28 8 12 11 5 12 13 45 Tactical Retreats 72 | . 1 1 1 . . 2 . . . 2 3 1 4 12 2 . . . 2 4 4 2 1 3 9 18 Traps | -11 -10 -10 -9 -9 -9 -8 -8 -7 -7 -7 -7 -7 -6 -5 -4 -4 -4 -4 -4 -3 -3 -2 -2 -2 -1 -1 ------- Run | Scr Mat Min Mat Min Exi Min Mat Fac Was Fac Sto Gar Fac Fac Fac Ext Cet Arc Hub Res Tes Res Qua Sec Acc Com Traps Triggered 23 | . 1 . . 2 . . . 1 . 2 . . 1 8 1 1 . . . 1 . . . . 3 2 Indirectly . | . . . . . . . . . . . . . . . . . . . . . . . . . . . Trap Hack Attempts . | . . . . . . . . . . . . . . . . . . . . . . . . . . . Triggered . | . . . . . . . . . . . . . . . . . . . . . . . . . . . Disarmed . | . . . . . . . . . . . . . . . . . . . . . . . . . . . Reprogrammed 6 | . . . 6 . . . . . . . . . . . . . . . . . . . . . . . Reused 1 | . . . 1 . . . . . . . . . . . . . . . . . . . . . . . Traps Extracted . | . . . . . . . . . . . . . . . . . . . . . . . . . . . Installed . | . . . . . . . . . . . . . . . . . . . . . . . . . . . Triggered 1 | . . . 1 . . . . . . . . . . . . . . . . . . . . . . . Exploded 2 | . . . . . 2 . . . . . . . . . . . . . . . . . . . . . Machines | -11 -10 -10 -9 -9 -9 -8 -8 -7 -7 -7 -7 -7 -6 -5 -4 -4 -4 -4 -4 -3 -3 -2 -2 -2 -1 -1 ---------- Run | Scr Mat Min Mat Min Exi Min Mat Fac Was Fac Sto Gar Fac Fac Fac Ext Cet Arc Hub Res Tes Res Qua Sec Acc Com Machines Disabled 102 | . . 5 . 1 1 8 1 . . 7 8 . 3 7 5 3 . 2 18 . 11 . 2 10 7 3 Max in Single Turn 16 | . . 4 . 1 1 6 1 . . 1 1 . 1 2 2 1 . 1 16 . 3 . 1 1 1 2 Garrison Access 10 | . . . . . . . . . . 1 . . 1 2 1 . . . 1 3 . . . . 1 . Phase Generator 1 | . . . . . . . . . . . . . . . . . . . . . . . . . . 1 Network Hub 1 | . . . . . . . . . . . . . . . . . . . 1 . . . . . . . Energy Cycler 1 | . . . . . . . . . . . . . . . . . . . . . . . . . 1 . Machines Sabotaged . | . . . . . . . . . . . . . . . . . . . . . . . . . . . Garrisons Compromised . | . . . . . . . . . . . . . . . . . . . . . . . . . . . Overloaded Fab Kills 7 | . . . . . . . . . . . . . . . . . . . . . . . . . 7 . Fab Network Shutdowns 1 | . . . . . . . . . . . . . . . . . . . . 1 . . . . . . Hacking | -11 -10 -10 -9 -9 -9 -8 -8 -7 -7 -7 -7 -7 -6 -5 -4 -4 -4 -4 -4 -3 -3 -2 -2 -2 -1 -1 --------- Run | Scr Mat Min Mat Min Exi Min Mat Fac Was Fac Sto Gar Fac Fac Fac Ext Cet Arc Hub Res Tes Res Qua Sec Acc Com Machines Accessed 107 | . 3 2 4 1 2 . 5 2 . 3 5 . 7 13 8 7 1 . 1 10 8 3 7 8 6 1 Terminals 79 | . 2 2 4 . . . 5 1 . 1 4 . 5 8 5 7 1 . 1 5 6 3 7 7 4 1 Fabricators 11 | . . . . . . . . . . 1 . . 1 2 2 . . . . 2 2 . . . 1 . Repair Stations . | . . . . . . . . . . . . . . . . . . . . . . . . . . . Recycling Units 2 | . 1 . . . . . . . . . . . . 1 . . . . . . . . . . . . Scanalyzers 1 | . . . . . . . . . . . . . . . . . . . . . . . . 1 . . Garrison Access 11 | . . . . . . . . 1 . 1 1 . 1 2 1 . . . . 3 . . . . 1 . Total Hacks 313 | . 9 7 13 1 2 . 21 5 . 7 14 . 18 31 16 18 1 . 2 28 26 13 27 32 20 2 Successful 147 | . 3 3 9 1 2 . 14 . . 3 8 . 11 13 4 13 1 . . 12 9 6 9 16 9 1 Failed 166 | . 6 4 4 . . . 7 5 . 4 6 . 7 18 12 5 . . 2 16 17 7 18 16 11 1 Catastrophic 42 | . 2 1 . . . . 1 2 . 1 2 . 3 4 5 . . . . 3 5 3 6 3 1 . Database Lockouts . | . . . . . . . . . . . . . . . . . . . . . . . . . . . Manual 124 | . 7 6 5 . 1 . 7 3 . 2 5 . 4 9 11 8 . . 2 5 8 7 16 15 3 . Terminals 274 | . 8 7 13 . . . 21 4 . 2 13 . 16 21 11 18 1 . 2 23 23 13 27 31 18 2 Fabricators 21 | . . . . . . . . . . 3 . . 1 7 4 . . . . 2 3 . . . 1 . Repair Stations . | . . . . . . . . . . . . . . . . . . . . . . . . . . . Recycling Units 2 | . 1 . . . . . . . . . . . . 1 . . . . . . . . . . . . Scanalyzers 1 | . . . . . . . . . . . . . . . . . . . . . . . . 1 . . Garrison Access 12 | . . . . . . . . 1 . 2 1 . 1 2 1 . . . . 3 . . . . 1 . Terminal Hacks 102 | . 2 3 9 1 2 . 13 . . . 4 . 8 7 1 8 1 . . 5 7 5 7 12 6 1 Record 3 | . . . . . 1 . . . . . . . . . . . . . . . . . 1 1 . . Part Schematic 4 | . . . . . . . . . . . . . 1 1 . 1 . . . 1 . . . . . . Prototype ID Bank 17 | . 1 2 3 . . . 3 . . . . . 1 1 . 1 . . . . 1 1 . 1 2 . Open Door 8 | . . . . 1 . . . . . . 1 . . . . 2 1 . . . . 1 . 2 . . Level Access Points 2 | . . . . . . . . . . . . . . . . . . . . 1 . . . 1 . . Branch Access Points 8 | . 1 . 1 . . . 2 . . . . . 1 . . . . . . . . 1 1 . 1 . Emergency Access Points 3 | . . . . . . . 3 . . . . . . . . . . . . . . . . . . . Terminal Index 5 | . . . 1 . . . . . . . . . . . . . . . . 1 . . 1 1 1 . Alert Level 2 | . . . . . . . . . . . . . . . . . . . . . . . . 2 . . Unreport Threat 24 | . . . . . . . . . . . . . 4 2 1 3 . . . 2 3 2 3 4 . . Locate Traps 6 | . . . 1 . . . 2 . . . 1 . . . . 1 . . . . . . . . 1 . Reprogram Traps 2 | . . . 2 . . . . . . . . . . . . . . . . . . . . . . . Hauler Manifests 4 | . . . 1 . . . 1 . . . . . 1 1 . . . . . . . . . . . . Registered Components 3 | . . . . . . . 1 . . . 1 . . 1 . . . . . . . . . . . . Registered Prototypes 2 | . . . . . . . . . . . 1 . . 1 . . . . . . . . . . . . Zone Layout 5 | . . 1 . . . . 1 . . . . . . . . . . . . . 1 . 1 . 1 . EX-Prototype ID Bank 1 | . . . . . 1 . . . . . . . . . . . . . . . . . . . . . Protovariant Controls 2 | . . . . . . . . . . . . . . . . . . . . . 2 . . . . . Disengage Seal 1 | . . . . . . . . . . . . . . . . . . . . . . . . . . 1 Fabricator Hacks 4 | . . . . . . . . . . 1 . . . 2 . . . . . 1 . . . . . . Load Schematic 1 | . . . . . . . . . . . . . . 1 . . . . . . . . . . . . Build 3 | . . . . . . . . . . 1 . . . 1 . . . . . 1 . . . . . . Repair Station Hacks . | . . . . . . . . . . . . . . . . . . . . . . . . . . . Recycling Unit Hacks . | . . . . . . . . . . . . . . . . . . . . . . . . . . . Scanalyzer . | . . . . . . . . . . . . . . . . . . . . . . . . . . . Garrison Access Hacks 10 | . . . . . . . . . . 1 1 . 1 2 1 . . . . 3 . . . . 1 . Unlock Access 1 | . . . . . . . . . . . 1 . . . . . . . . . . . . . . . Seal Access 9 | . . . . . . . . . . 1 . . 1 2 1 . . . . 3 . . . . 1 . Unauthorized Hacks 31 | . 1 . . . . . 1 . . 1 3 . 2 2 2 5 . . . 3 2 1 2 4 2 . Terminals 23 | . . . . . . . 1 . . 1 3 . 1 . 1 5 . . . 2 2 1 2 3 1 . Track 4 | . . . . . . . . . . . 1 . . . . 2 . . . . . . . 1 . . Botnet 19 | . . . . . . . 1 . . 1 2 . 1 . 1 3 . . . 2 2 1 2 2 1 . Fabricators 5 | . . . . . . . . . . . . . 1 1 1 . . . . 1 . . . . 1 . Haulers 4 | . . . . . . . . . . . . . 1 1 1 . . . . 1 . . . . . . Overload 1 | . . . . . . . . . . . . . . . . . . . . . . . . . 1 . Repair Stations . | . . . . . . . . . . . . . . . . . . . . . . . . . . . Recycling Units 2 | . 1 . . . . . . . . . . . . 1 . . . . . . . . . . . . Tunnel 2 | . 1 . . . . . . . . . . . . 1 . . . . . . . . . . . . Scanalyzers 1 | . . . . . . . . . . . . . . . . . . . . . . . . 1 . . Researchers 1 | . . . . . . . . . . . . . . . . . . . . . . . . 1 . . Garrison Access . | . . . . . . . . . . . . . . . . . . . . . . . . . . . Data Cores Recovered . | . . . . . . . . . . . . . . . . . . . . . . . . . . . Used . | . . . . . . . . . . . . . . . . . . . . . . . . . . . Hacking Detections 80 | . 2 2 2 . . . 5 2 . 3 3 . 6 10 6 6 . . 1 6 8 3 7 4 4 . Full Trace Events 18 | . 1 2 . . . . . 1 . 1 1 . 1 2 4 . . . . 2 1 . . . 2 . Feedback Events 1 | . . . . . . . . . . . . . . . 1 . . . . . . . . . . . Corruption 1 | . . . . . . . . . . . . . . . 1 . . . . . . . . . . . Feedback Blocked . | . . . . . . . . . . . . . . . . . . . . . . . . . . . Robot Schematics Acquired . | . . . . . . . . . . . . . . . . . . . . . . . . . . . Robots Built 7 | . . . . . . . . . . 4 . . . . . . . . . 3 . . . . . . Matter 636 | . . . . . . . . . . 252 . . . . . . . . . 384 . . . . . . Time 169 | . . . . . . . . . . 67 . . . . . . . . . 102 . . . . . . Total Robot Build Rating 40 | . . . . . . . . . . 16 . . . . . . . . . 24 . . . . . . Part Schematics Acquired 4 | . . . . . . . . . . . . . 1 1 . 1 . . . 1 . . . . . . Parts Built 1 | . . . . . . . . . . . . . . 1 . . . . . . . . . . . . Matter 234 | . . . . . . . . . . . . . . 234 . . . . . . . . . . . . Time 58 | . . . . . . . . . . . . . . 58 . . . . . . . . . . . . Total Part Build Rating 7 | . . . . . . . . . . . . . . 7 . . . . . . . . . . . . Parts Repaired . | . . . . . . . . . . . . . . . . . . . . . . . . . . . Time . | . . . . . . . . . . . . . . . . . . . . . . . . . . . Parts Recycled . | . . . . . . . . . . . . . . . . . . . . . . . . . . . Recycled Matter . | . . . . . . . . . . . . . . . . . . . . . . . . . . . Retrieved Matter . | . . . . . . . . . . . . . . . . . . . . . . . . . . . Retrieved Components . | . . . . . . . . . . . . . . . . . . . . . . . . . . . Parts Scanalyzed . | . . . . . . . . . . . . . . . . . . . . . . . . . . . Part Schematics Acquired . | . . . . . . . . . . . . . . . . . . . . . . . . . . . Parts Damaged . | . . . . . . . . . . . . . . . . . . . . . . . . . . . Bothacking | -11 -10 -10 -9 -9 -9 -8 -8 -7 -7 -7 -7 -7 -6 -5 -4 -4 -4 -4 -4 -3 -3 -2 -2 -2 -1 -1 ------------ Run | Scr Mat Min Mat Min Exi Min Mat Fac Was Fac Sto Gar Fac Fac Fac Ext Cet Arc Hub Res Tes Res Qua Sec Acc Com Used RIF Installer 1 | . . . . . . . . . . . . 1 . . . . . . . . . . . . . . Robots Hacked . | . . . . . . . . . . . . . . . . . . . . . . . . . . . Non-combat . | . . . . . . . . . . . . . . . . . . . . . . . . . . . Combat . | . . . . . . . . . . . . . . . . . . . . . . . . . . . Robot Hacks Applied . | . . . . . . . . . . . . . . . . . . . . . . . . . . . Relay Couplers Released . | . . . . . . . . . . . . . . . . . . . . . . . . . . . Robots Rewired 8 | . . . . . . . . 1 . . . . . . . 7 . . . . . . . . . . Allies Hacked . | . . . . . . . . . . . . . . . . . . . . . . . . . . . Hacks Repelled . | . . . . . . . . . . . . . . . . . . . . . . . . . . . Allies | -11 -10 -10 -9 -9 -9 -8 -8 -7 -7 -7 -7 -7 -6 -5 -4 -4 -4 -4 -4 -3 -3 -2 -2 -2 -1 -1 -------- Run | Scr Mat Min Mat Min Exi Min Mat Fac Was Fac Sto Gar Fac Fac Fac Ext Cet Arc Hub Res Tes Res Qua Sec Acc Com Total Allies 68 | . . 1 . . . . . 1 1 4 12 . . 3 . 9 . . . 6 . . . . . 31 Largest Group 13 | . . 1 . . . . . 1 1 4 10 . . 3 . 9 . . . 3 . . . . . 13 Highest-Rated Group 486 | . . 31 . . . . . 16 31 48 173 . . 93 . 486 . . . 138 . . . . . 403 Highest-Rated Ally 243 | . . 31 . . . . . 16 31 12 31 . . 31 . 150 . . . 46 . . . . . 243 Total Orders 11 | . . . . . . . . . . . . . 2 . . . . . . . . . . . . 9 EXPLORE 5 | . . . . . . . . . . . . . 1 . . . . . . . . . . . . 4 RETURN 6 | . . . . . . . . . . . . . 1 . . . . . . . . . . . . 5 Ally Attacks 481 | . . 3 . . . . . 12 14 18 78 . . 30 . 132 . . . 11 . . . . . 183 Total Damage 10878 | . . 44 . . . . . 157 269 247 1071 . . 472 . 3276 . . . 307 . . . . . 5035 Kills 55 | . . . . . . . . 2 . 4 11 . . 5 . 16 . . . 1 . . . . . 16 Allies Corrupted 1 | . . . . . . . . . . . . . . . . . . . . . . . . . . 1 Allies Melted . | . . . . . . . . . . . . . . . . . . . . . . . . . . . Intel | -11 -10 -10 -9 -9 -9 -8 -8 -7 -7 -7 -7 -7 -6 -5 -4 -4 -4 -4 -4 -3 -3 -2 -2 -2 -1 -1 ------- Run | Scr Mat Min Mat Min Exi Min Mat Fac Was Fac Sto Gar Fac Fac Fac Ext Cet Arc Hub Res Tes Res Qua Sec Acc Com Robot Analysis Total . | . . . . . . . . . . . . . . . . . . . . . . . . . . . Derelict Logs Recovered 4 | . . 1 . 3 . . . . . . . . . . . . . . . . . . . . . . Drone Launches 7 | . . . . . . . . . . . . . 2 . . . . . . . . . . . . 5 Drone Recoveries 7 | . . . . . . . . . . . . . 2 . . . . . . . . . . . . 5 Exploration | -11 -10 -10 -9 -9 -9 -8 -8 -7 -7 -7 -7 -7 -6 -5 -4 -4 -4 -4 -4 -3 -3 -2 -2 -2 -1 -1 ------------- Run | Scr Mat Min Mat Min Exi Min Mat Fac Was Fac Sto Gar Fac Fac Fac Ext Cet Arc Hub Res Tes Res Qua Sec Acc Com Turns Passed 22763 | 36 177 630 567 794 754 637 385 542 267 729 1121 1034 1050 1301 541 673 194 59 187 1107 803 381 308 659 1173 6654 Spaces Moved 21546 | 33 130 449 389 434 401 366 334 533 161 605 706 407 1479 1880 729 661 192 45 224 1576 893 466 451 741 1263 5998 Core 3 | 1 . . . 1 . . . . . . . . . . . . . . . . . . . . . 1 Treads 1168 | . . . 46 433 401 288 . . . . . . . . . . . . . . . . . . . . Legs . | . . . . . . . . . . . . . . . . . . . . . . . . . . . Wheels 3150 | 32 130 449 343 . . 78 334 533 161 605 485 . . . . . . . . . . . . . . . Hover 16175 | . . . . . . . . . . . 221 407 1479 1880 729 661 192 45 224 1576 893 466 451 741 1263 4947 Flight 1050 | . . . . . . . . . . . . . . . . . . . . . . . . . . 1050 Fastest Speed 25 | 50 90 90 90 150 160 90 90 80 90 90 45 45 45 43 43 43 48 48 36 48 50 50 44 50 44 25 Average Speed 59 | 88 90 90 98 159 160 145 90 85 90 90 90 45 45 43 43 43 48 48 45 49 50 50 49 50 49 44 Slowest Speed 600 | 90 90 90 160 160 160 160 90 90 90 90 106 45 106 48 43 48 48 48 48 58 58 50 50 50 50 600 Overloaded Moves 146 | . . . . . . . . . . . . . . . . . . . 43 . . . 65 . 12 26 Propulsion Burnouts . | . . . . . . . . . . . . . . . . . . . . . . . . . . . Robots Hopped 2 | . . . . . . . . . . . . . . . . . . . . . . . . . . 2 Cave-ins Triggered . | . . . . . . . . . . . . . . . . . . . . . . . . . . . Exploration Rate (%) 55 | 3 36 72 38 97 71 87 33 16 96 22 83 59 41 52 31 87 67 73 41 56 91 18 57 54 42 64 Regions Visited 26 Branch Regions 13 Pre-discovered Areas 5 | . 1 . . 1 1 . . . . . 1 . . 1 . . . . . . . . . . . . Known Exits Taken 11 | . 1 . 1 . . 1 . . . 1 1 . 1 1 . . . . . . 1 1 . 1 1 . Unknown Exits Taken 12 | 1 . 1 . 1 1 . 1 . . . . . . . 1 1 1 1 1 1 . . 1 . . . Scrap Searched 5 | . . 2 . 2 . 1 . . . . . . . . . . . . . . . . . . . . Spaces Dug 147 | . . . . . . . 1 . . . 2 . 4 20 8 . . . . . 11 11 6 2 21 61 Terrain Destroyed 1359 | . . 16 . . . 28 5 5 2 20 125 5 49 122 117 38 24 23 214 45 99 44 11 31 60 276 Melee . | . . . . . . . . . . . . . . . . . . . . . . . . . . . Projectile 806 | . . . . . . 14 5 5 2 16 125 5 49 108 96 38 24 23 49 45 84 44 11 31 30 2 AOE 550 | . . 16 . . . 14 . . . 4 . . . 14 21 . . . 165 . 15 . . . 30 271 Terrain Rammed 3 | . . . . . . . . . . . . . . . . . . . . . . . . . . 3 Walls Destroyed 3 | . . . . . . . . . . . . . . . . . . . . . . . . . . 3 Machines Disabled . | . . . . . . . . . . . . . . . . . . . . . . . . . . . Actions | -11 -10 -10 -9 -9 -9 -8 -8 -7 -7 -7 -7 -7 -6 -5 -4 -4 -4 -4 -4 -3 -3 -2 -2 -2 -1 -1 --------- Run | Scr Mat Min Mat Min Exi Min Mat Fac Was Fac Sto Gar Fac Fac Fac Ext Cet Arc Hub Res Tes Res Qua Sec Acc Com Total 29042 | 37 167 580 502 505 477 436 386 601 212 713 996 1209 1750 2213 875 991 269 68 271 1817 1148 557 516 936 1578 9232 Wait 4152 | . 18 45 45 25 35 16 16 29 8 32 93 747 127 116 48 175 32 6 19 87 78 11 23 57 70 2194 Move 21515 | 32 129 448 388 433 400 365 333 533 160 604 705 406 1478 1879 728 660 191 44 223 1575 891 465 450 740 1262 5993 Hop 2 | . . . . . . . . . . . . . . . . . . . . . . . . . . 2 Pick Up 98 | . 1 3 2 5 4 . 1 2 2 . 1 1 4 4 3 5 . 1 . 3 5 4 3 3 12 29 Fast Attach 328 | 5 1 4 5 5 4 3 2 1 1 7 12 1 23 19 2 5 5 . 3 22 19 4 2 26 4 143 Attach 19 | . . . . 1 . . . . . . 1 . 2 . 1 . . . . . 1 1 1 1 1 9 Detach 4 | . . . . . . . . . . 1 . . . . . . . . . . . . . 1 . 2 Swap 26 | . . 1 . 1 . . 2 2 . . . . 2 4 1 . 5 . . . . . . . 1 7 Drop 381 | . . 7 6 5 8 3 2 3 3 4 13 1 25 19 5 8 5 1 2 23 22 7 3 24 14 168 Fire 1322 | . 11 49 36 14 22 21 21 10 37 39 101 29 60 89 42 31 16 8 18 42 53 34 13 48 114 364 Melee 3 | . . . . . . . . . . . . . . . . . . . . . . . . . . 3 Ram 3 | . . . . . . . . . . . . . . . . . . . . . . . . . . 3 Kick . | . . . . . . . . . . . . . . . . . . . . . . . . . . . Crush . | . . . . . . . . . . . . . . . . . . . . . . . . . . . Escape Stasis 49 | . . . . . . . . . . . . . . 13 . 5 . . . . 9 . . . 9 13 Rewire 54 | . . . . . . . . 9 . . . . . . . 45 . . . . . . . . . . Trap . | . . . . . . . . . . . . . . . . . . . . . . . . . . . Miscellaneous 1086 | . 7 23 20 16 4 28 9 12 1 26 70 24 29 70 45 57 15 8 6 65 70 31 21 36 91 302 Route ------- -11/Scrapyard -10/Materials (discovered 2 exits: *Mat / *Min) -10/Mines (discovered 2 exits: *Mat x2) -9/Materials (discovered 2 exits: *Mat / *Min) -9/Mines (discovered 4 exits: *Mat x2 / *Exi / [*Zio]) -9/Exiles (discovered 2 exits: [*Min x2]) -8/Mines -8/Materials -7/Factory -7/Waste -7/Factory (discovered 2 exits: *Sto / [*Low]) -7/Storage (discovered 2 exits: *Fac / Gar) -7/Garrison (discovered 2 exits: *Fac x2) -6/Factory (discovered 3 exits: *Fac / *Low x2) -5/Factory (discovered 2 exits: *Fac x2) -4/Factory (discovered 4 exits: *Res x3 / *Ext) -4/Extension (discovered 2 exits: *Res / *Cet) -4/Cetus (discovered 2 exits: *Res / [*Arc]) -4/Archives -4/Hub_04(d) (discovered 3 exits: *Res x3) -3/Research (discovered 4 exits: *Res x3 / *Tes) -3/Testing -2/Research (discovered 2 exits: *Qua x2) -2/Quarantine (discovered 2 exits: *Acc / *Sec) -2/Section 7 -1/Access -1/Command 0b10 Command History --------- Turn | Location | Event 1 | -11/Scrapyard | Upgraded with Propulsion slot (x1) 1 | -11/Scrapyard | Upgraded with Utility slot (x1) 1 | -11/Scrapyard | Upgraded with Weapon slot (x1) 22 | -11/Scrapyard | Discovered new exit (range 15) 37 | -11/Scrapyard | Entered Materials 42 | -10/Materials | Identified exit to Mines 108 | -10/Materials | Discovered new exit (range 11) 214 | -10/Materials | Entered Mines 220 | -10/Mines | Met a Derelict bent on vengeance 332 | -10/Mines | Build established: Mutant 398 | -10/Mines | Reached level 2 463 | -10/Mines | Learned Materials stockpile data 593 | -10/Mines | Escorted by a lone wolf Derelict 655 | -10/Mines | Assembled infested the area 659 | -10/Mines | Build established: Scavenger-Mutant 798 | -10/Mines | Discovered new exit (range 9) 836 | -10/Mines | Discovered new exit (range 4) 844 | -10/Mines | Entered Materials 846 | -9/Materials | Reached level 3 852 | -9/Materials | Identified exit to Mines 852 | -9/Materials | Reached level 4 1236 | -9/Materials | Upgraded with Weapon slot (x1) 1254 | -9/Materials | Upgraded with Utility slot (x1) 1271 | -9/Materials | Discovered new exit (range 10) 1411 | -9/Materials | Entered Mines 1413 | -9/Mines | Reached level 5 1437 | -9/Mines | Learned Materials stockpile data 1451 | -9/Mines | Learned location of Storage (-7) 1525 | -9/Mines | Learned Materials terminal intel 1544 | -9/Mines | Build established: Scavenger-Tank 1653 | -9/Mines | Discovered new exit (range 5) 1755 | -9/Mines | A Derelict revealed a hidden shortcut to a safe place 1768 | -9/Mines | Identified exit to Materials 1801 | -9/Mines | Met a Derelict who couldn't figure out how to use a Trap Extractor 1825 | -9/Mines | Upgraded with Utility slot (x1) 2066 | -9/Mines | Upgraded with Utility slot (x1) 2095 | -9/Mines | Build established: Scavenger-Gunner 2131 | -9/Mines | Reached level 6 2197 | -9/Mines | Deemed a non-threat by the Exiles lab entrance 2197 | -9/Mines | Discovered new exit (range 5) 2205 | -9/Mines | Entered Exiles 2250 | -9/Exiles | Discovered new exit (range 16) 2316 | -9/Exiles | Met 8R-AWN 2343 | -9/Exiles | Met EX-HEX 2400 | -9/Exiles | Met EX-DEC 2434 | -9/Exiles | Learned location of Zion (-7) 2458 | -9/Exiles | Met EX-BIN 2496 | -9/Exiles | Aligned with FarCom system 2497 | -9/Exiles | Given EX-Vault access code 2534 | -9/Exiles | Opened EX-Vault 2569 | -9/Exiles | Warned to stay clear of 0b10 Research branches 2599 | -9/Exiles | Exiles lab attacked by MAIN.C 2740 | -9/Exiles | Attacked by the Exiles 2787 | -9/Exiles | Core integrity fell below 50% 2800 | -9/Exiles | Destroyed 8R-AWN 2828 | -9/Exiles | Found Prototype Ballistic Gun 2828 | -9/Exiles | Identified 8R-AWN's Boregun 2857 | -9/Exiles | Discovered new exit (range 10) 2959 | -9/Exiles | Entered Mines 3262 | -8/Mines | Reached level 7 3593 | -8/Mines | Discovered exit to Materials (range 3) 3596 | -8/Mines | Entered Materials 3598 | -8/Materials | Loaded intel: 12 terminal locations 3598 | -8/Materials | Reached level 8 3698 | -8/Materials | Upgraded with Weapon slot (x1) 3738 | -8/Materials | Reached level 9 3844 | -8/Materials | Discovered new exit (range 16) 3943 | -8/Materials | Upgraded with Utility slot (x1) 3981 | -8/Materials | Entered Factory 3983 | -7/Factory | Reached level 10 4022 | -7/Factory | Discovered new exit (range 6) 4210 | -7/Factory | Upgraded with Propulsion slot (x1) 4523 | -7/Factory | Sucked down chute 4523 | -7/Factory | Entered Waste 4524 | -7/Waste | Met a frightened Derelict 4538 | -7/Waste | EMP discharged 4538 | -7/Waste | Spotted C-40 Crusher 4540 | -7/Waste | Spotted C-40 Crusher 4549 | -7/Waste | Destroyed C-40 Crusher 4554 | -7/Waste | Spotted C-40 Crusher 4596 | -7/Waste | Destroyed C-40 Crusher 4624 | -7/Waste | Destroyed C-40 Crusher 4631 | -7/Waste | Spotted C-40 Crusher 4631 | -7/Waste | Spotted C-40 Crusher 4638 | -7/Waste | EMP discharged 4638 | -7/Waste | System corruption reached 10% 4639 | -7/Waste | Spotted C-40 Crusher 4676 | -7/Waste | Destroyed C-40 Crusher 4720 | -7/Waste | Destroyed C-40 Crusher 4735 | -7/Waste | Destroyed C-40 Crusher 4738 | -7/Waste | EMP discharged 4776 | -7/Waste | Discovered new exit (range 17) 4790 | -7/Waste | Entered Factory 4855 | -7/Factory | Upgraded with Utility slot (x1) 4883 | -7/Factory | Reached level 11 4926 | -7/Factory | Discovered new exit (range 14) 5112 | -7/Factory | Reached level 12 5494 | -7/Factory | Discovered new exit (range 6) 5499 | -7/Factory | Identified exit to Storage 5507 | -7/Factory | Fabricated S-27 Virus? 5519 | -7/Factory | Entered Storage 5521 | -7/Storage | Reached level 13 5577 | -7/Storage | Garrison activated, responded to threat 5614 | -7/Storage | Reached level 14 5655 | -7/Storage | Destroyed 10 combat bots 5698 | -7/Storage | Identified exit to Garrison 5901 | -7/Storage | Reached level 15 5919 | -7/Storage | First assault squad dispatched 5979 | -7/Storage | Discovered new exit (range 17) 5984 | -7/Storage | Met a pair of Derelict thieves 6081 | -7/Storage | Destroyed 9 combat bots 6236 | -7/Storage | Learned location of Armory (-4) 6259 | -7/Storage | Assisted by bots powering up and referring to "LRC-V3" 6288 | -7/Storage | Reached level 16 6450 | -7/Storage | Destroyed 8 combat bots 6640 | -7/Storage | Entered Garrison 6897 | -7/Garrison | Build established: Scavenger-Mutant 7054 | -7/Garrison | Triggered checkpoint 7420 | -7/Garrison | Triggered checkpoint 7443 | -7/Garrison | Reached level 17 7494 | -7/Garrison | Discovered new exit (range 15) 7565 | -7/Garrison | Triggered checkpoint 7654 | -7/Garrison | Discovered new exit (range 10) 7662 | -7/Garrison | Installed Relay Interface Framework 7674 | -7/Garrison | Entered Factory 7695 | -6/Factory | Reached level 18 7729 | -6/Factory | Upgraded with Propulsion slot (x1) 7909 | -6/Factory | Upgraded with Power slot (x1) 8024 | -6/Factory | First assault squad dispatched 8097 | -6/Factory | Discovered new exit (range 15) 8201 | -6/Factory | Build established: Gunner 8271 | -6/Factory | Upgraded with Utility slot (x1) 8284 | -6/Factory | Identified exit to Lower Caves 8462 | -6/Factory | Reached level 19 8475 | -6/Factory | Found Prototype Processor 8475 | -6/Factory | Identified Exp. Signal Interpreter 8598 | -6/Factory | Found Prototype Processor 8598 | -6/Factory | Identified Exp. Targeting Computer 8621 | -6/Factory | Discovered new exit (range 13) 8724 | -6/Factory | Identified exit to Factory 8724 | -6/Factory | Entered another Factory area 8726 | -5/Factory | Reached level 20 8776 | -5/Factory | Upgraded with Propulsion slot (x1) 8806 | -5/Factory | Discovered new exit (range 5) 8808 | -5/Factory | Identified exit to Factory 8929 | -5/Factory | Allied Derelicts emerged from ambush trap array 9045 | -5/Factory | Garrison activated, responded to threat 9046 | -5/Factory | P-70 Sage assimilated allied 76-TPH(g) 9047 | -5/Factory | Reached level 21 9204 | -5/Factory | Upgraded with Weapon slot (x1) 9482 | -5/Factory | Reached level 22 9512 | -5/Factory | Discovered exit to Factory (range 17) 9550 | -5/Factory | Upgraded with Utility slot (x1) 9705 | -5/Factory | Spotted B-75 Beast 9894 | -5/Factory | Fabricated Imp. System Restoration Module? 9924 | -5/Factory | First assault squad dispatched 10025 | -5/Factory | Entered another Factory area 10027 | -4/Factory | Reached level 23 10080 | -4/Factory | Discovered new exit (range 17) 10219 | -4/Factory | Discovered new exit (range 12) 10306 | -4/Factory | Reached level 24 10352 | -4/Factory | Destroyed 7 combat bots 10475 | -4/Factory | Discovered new exit (range 3) 10491 | -4/Factory | Discovered new exit (range 16) 10512 | -4/Factory | Found Tesla Bomb Launcher 10525 | -4/Factory | First assault squad dispatched 10566 | -4/Factory | Entered Extension 10624 | -4/Extension | Rescued a captive Derelict 10656 | -4/Extension | Reached level 25 10884 | -4/Extension | Spotted B-86 Titan 10918 | -4/Extension | Destroyed B-86 Titan 10943 | -4/Extension | Spotted B-86 Titan 10956 | -4/Extension | Destroyed B-86 Titan 11063 | -4/Extension | Rescued A7 11066 | -4/Extension | First assault squad dispatched 11085 | -4/Extension | Build established: Commander-Gunner 11182 | -4/Extension | Destroyed A7 11186 | -4/Extension | Extracted ID and sensor layout for unrecognized location from A7's data core 11190 | -4/Extension | Found Prototype Protection 11190 | -4/Extension | Identified Med. Regenerative Plating 11195 | -4/Extension | Reached level 26 11200 | -4/Extension | Upgraded with Utility slot (x1) 11236 | -4/Extension | Discovered new exit (range 10) 11236 | -4/Extension | Discovered new exit (range 6) 11239 | -4/Extension | Entered Cetus 11246 | -4/Cetus | Spotted Cetus Guard 11246 | -4/Cetus | Spotted Cetus Guard 11249 | -4/Cetus | Spotted Cetus Guard 11249 | -4/Cetus | Spotted Cetus Guard 11255 | -4/Cetus | Destroyed Cetus Guard 11255 | -4/Cetus | Destroyed Cetus Guard 11255 | -4/Cetus | Destroyed Cetus Guard 11256 | -4/Cetus | Destroyed Cetus Guard 11339 | -4/Cetus | Discovered new exit (range 16) 11386 | -4/Cetus | Spotted Cetus Guard 11386 | -4/Cetus | Spotted Cetus Guard 11388 | -4/Cetus | Spotted Cetus Guard 11388 | -4/Cetus | Spotted Cetus Guard 11392 | -4/Cetus | Destroyed Cetus Guard 11393 | -4/Cetus | Destroyed Cetus Guard 11393 | -4/Cetus | Destroyed Cetus Guard 11394 | -4/Cetus | Destroyed Cetus Guard 11396 | -4/Cetus | Discovered new exit (range 16) 11400 | -4/Cetus | Met Revision 17 11433 | -4/Cetus | Entered Archives 11483 | -4/Archives | Discovered new exit (range 17) 11492 | -4/Archives | Entered Hub_04(d) 11553 | -4/Hub_04(d) | Discovered new exit (range 13) 11604 | -4/Hub_04(d) | Garrison activated, responded to threat 11608 | -4/Hub_04(d) | Discovered new exit (range 11) 11637 | -4/Hub_04(d) | Garrison activated, responded to threat 11658 | -4/Hub_04(d) | Network Hub disabled 11658 | -4/Hub_04(d) | Reached level 27 11661 | -4/Hub_04(d) | Spotted Lightning 11661 | -4/Hub_04(d) | Spotted Lightning 11661 | -4/Hub_04(d) | Spotted Lightning 11661 | -4/Hub_04(d) | Spotted Lightning 11661 | -4/Hub_04(d) | Spotted Lightning 11662 | -4/Hub_04(d) | Spotted Lightning 11662 | -4/Hub_04(d) | Spotted Lightning 11664 | -4/Hub_04(d) | Spotted Lightning 11664 | -4/Hub_04(d) | Spotted Lightning 11664 | -4/Hub_04(d) | Spotted Lightning 11664 | -4/Hub_04(d) | Spotted Lightning 11664 | -4/Hub_04(d) | Spotted Lightning 11675 | -4/Hub_04(d) | Discovered new exit (range 10) 11679 | -4/Hub_04(d) | Entered Research 11879 | -3/Research | Revision forces began assault on 0b10 11883 | -3/Research | Discovered new exit (range 15) 11924 | -3/Research | Upgraded with Propulsion slot (x1) 12137 | -3/Research | Reached level 28 12137 | -3/Research | Identified exit to Research 12157 | -3/Research | Fabricated B-74 Champion? 12212 | -3/Research | Destroyed 8 combat bots 12350 | -3/Research | Upgraded with Weapon slot (x1) 12379 | -3/Research | Research terminal network offline 12493 | -3/Research | Spotted Striker 12500 | -3/Research | Destroyed Striker 12638 | -3/Research | Build established: Scavenger-Executioner 12657 | -3/Research | Spotted Striker 12665 | -3/Research | Destroyed Striker 12686 | -3/Research | Found Prototype Device 12686 | -3/Research | Identified Adv. Kinecellerator 12721 | -3/Research | Discovered new exit (range 13) 12737 | -3/Research | Spotted Striker 12744 | -3/Research | Destroyed Striker 12766 | -3/Research | Local fabrication network quarantined 12768 | -3/Research | Destroyed 11 combat bots 12786 | -3/Research | Entered Testing 12788 | -3/Testing | Reached level 29 12925 | -3/Testing | Spotted Striker 12932 | -3/Testing | Spotted Striker 12940 | -3/Testing | Destroyed Striker 12945 | -3/Testing | Spotted Alpha 7 12946 | -3/Testing | Destroyed Striker 12975 | -3/Testing | Destroyed Alpha 7 12993 | -3/Testing | Found Prototype Ballistic Gun 12993 | -3/Testing | Identified Multirail 13021 | -3/Testing | Stole the SGEMP Prototype 13036 | -3/Testing | First assault squad dispatched 13139 | -3/Testing | Destroyed 8 combat bots 13183 | -3/Testing | Scanned by Researcher 13250 | -3/Testing | Found Prototype Device 13250 | -3/Testing | Identified Exp. Thermal Shield 13266 | -3/Testing | Protovariant out of control (PP-WZUD17XNAW) 13266 | -3/Testing | Unleashed a protovariant (PP-WZUD17XNAW) 13286 | -3/Testing | Protovariant out of control (PP-TIEH64KII1) 13286 | -3/Testing | Reached level 30 13286 | -3/Testing | Unleashed a protovariant (PP-TIEH64KII1) 13291 | -3/Testing | Spotted PP-TIEH64KII1 13300 | -3/Testing | PP-TIEH64KII1 assimilated allied C-55 Analyst 13434 | -3/Testing | Spotted PP-WZUD17XNAW 13542 | -3/Testing | PP-TIEH64KII1 assimilated allied U-05 Engineer 13579 | -3/Testing | Discovered exit to Research (range 11) 13589 | -3/Testing | Entered Research 13634 | -2/Research | Identified exit to Quarantine 13669 | -2/Research | Reached level 31 13711 | -2/Research | Destroyed 7 combat bots 13720 | -2/Research | Found Prototype Hackware 13832 | -2/Research | Upgraded with Utility slot (x1) 13832 | -2/Research | Identified Exp. System Shield 13835 | -2/Research | Destroyed 7 combat bots 13855 | -2/Research | Found Prototype Processor 13855 | -2/Research | Identified Exp. Terrain Scan Processor 13868 | -2/Research | First assault squad dispatched 13970 | -2/Research | Entered Quarantine 14006 | -2/Quarantine | Found Alien Artifact 14006 | -2/Quarantine | Identified Core Reset Matrix 14006 | -2/Quarantine | Reached level 32 14006 | -2/Quarantine | Used Core Reset Matrix 14010 | -2/Quarantine | Detected hypermatrix surge 14010 | -2/Quarantine | Sensed 4 artifacts in vicinity 14119 | -2/Quarantine | Upgraded with Utility slot (x1) 14123 | -2/Quarantine | Found Subatomic Replicator 14160 | -2/Quarantine | Discovered new exit (range 12) 14231 | -2/Quarantine | Spotted Fortress 14265 | -2/Quarantine | Discovered new exit (range 6) 14278 | -2/Quarantine | Entered Section 7 14279 | -2/Section 7 | Sensed 16 artifacts in vicinity 14285 | -2/Section 7 | Spotted S7 Guard 14290 | -2/Section 7 | Used Subatomic Replicator to replicate Integrated Singularity Reactor 14291 | -2/Section 7 | Found Integrated Singularity Reactor 14291 | -2/Section 7 | Installed Integrated Singularity Reactor, increased core energy generation (+20) 14294 | -2/Section 7 | Installed Integrated Singularity Reactor, increased core energy generation (+20) 14311 | -2/Section 7 | Found Integrated Reactor 14311 | -2/Section 7 | Installed Integrated Reactor, increased core energy generation (+10) 14357 | -2/Section 7 | Reached level 33 14392 | -2/Section 7 | Destroyed 8 combat bots 14435 | -2/Section 7 | Found Integrated Reactor 14435 | -2/Section 7 | Installed Integrated Reactor, increased core energy generation (+10) 14440 | -2/Section 7 | Spotted Alpha 7 14444 | -2/Section 7 | Found Prototype Device 14444 | -2/Section 7 | Identified Exp. Thermal Shield 14464 | -2/Section 7 | Spotted Alpha 7 14471 | -2/Section 7 | Destroyed Alpha 7 14491 | -2/Section 7 | Destroyed Alpha 7 14496 | -2/Section 7 | Found Multirail 14526 | -2/Section 7 | Found Prototype Device 14526 | -2/Section 7 | Identified Exp. ECM Suite 14528 | -2/Section 7 | First assault squad dispatched 14534 | -2/Section 7 | Found Exp. Targeting Computer 14537 | -2/Section 7 | Found Unknown Device 14537 | -2/Section 7 | Identified Antimissile System 14539 | -2/Section 7 | Found Prototype Processor 14539 | -2/Section 7 | Identified Exp. Target Analyzer 14542 | -2/Section 7 | Found Exp. ECM Suite 14575 | -2/Section 7 | Spotted B-99 Colossus 14608 | -2/Section 7 | Destroyed B-99 Colossus 14619 | -2/Section 7 | Found Multirail 14664 | -2/Section 7 | Found LRC Matter Compressor 14664 | -2/Section 7 | Installed LRC Matter Compressor, increased matter storage capacity (+125) 14717 | -2/Section 7 | Identified exit to Access 14743 | -2/Section 7 | Spotted Executioner 14743 | -2/Section 7 | Spotted Executioner 14745 | -2/Section 7 | Destroyed Executioner 14748 | -2/Section 7 | Destroyed Executioner 14760 | -2/Section 7 | Found Prototype Processor 14760 | -2/Section 7 | Identified Exp. Core Analyzer 14897 | -2/Section 7 | Destroyed 7 combat bots 14937 | -2/Section 7 | Entered Access 14954 | -1/Access | Reached level 34 15035 | -1/Access | Garrison activated, responded to threat 15086 | -1/Access | Spotted B-99 Colossus 15095 | -1/Access | Destroyed 8 combat bots 15103 | -1/Access | Destroyed B-99 Colossus 15111 | -1/Access | Found Multirail 15114 | -1/Access | Found Multirail 15153 | -1/Access | Destroyed 11 combat bots 15187 | -1/Access | First assault squad dispatched 15234 | -1/Access | Identified exit to Command 15234 | -1/Access | Reached level 35 15276 | -1/Access | Spotted B-99 Colossus 15276 | -1/Access | Spotted B-99 Colossus 15289 | -1/Access | Destroyed B-99 Colossus 15335 | -1/Access | Destroyed B-99 Colossus 15367 | -1/Access | Found Multirail 15575 | -1/Access | Destroyed 14 combat bots 15578 | -1/Access | Energy Cycler disabled 15870 | -1/Access | Reached level 36 15898 | -1/Access | High security lockdown imminent 15967 | -1/Access | Destroyed 18 combat bots 15978 | -1/Access | High security lockdown engaged 16106 | -1/Access | Spotted B-99 Colossus 16106 | -1/Access | Spotted B-99 Colossus 16110 | -1/Access | Entered Command 16130 | -1/Command | Disengaged cave seal 16185 | -1/Command | Reached level 37 16194 | -1/Command | High security lockdown imminent 16218 | -1/Command | Destroyed 10 combat bots 16274 | -1/Command | High security lockdown engaged 16364 | -1/Command | Destroyed 13 combat bots 16465 | -1/Command | Spotted Investigator 16476 | -1/Command | Allies destroyed Investigator 16572 | -1/Command | Destroyed 22 combat bots 16589 | -1/Command | Spotted Executioner 16601 | -1/Command | Destroyed Executioner 16602 | -1/Command | Spotted Executioner 16603 | -1/Command | Spotted Executioner 16607 | -1/Command | Destroyed Executioner 16611 | -1/Command | Destroyed Executioner 16626 | -1/Command | Reached level 38 16647 | -1/Command | Destroyed 24 combat bots 16829 | -1/Command | Spotted Investigator 16842 | -1/Command | Destroyed Investigator 16867 | -1/Command | Spotted Executioner 16876 | -1/Command | Destroyed Executioner 16916 | -1/Command | Destroyed 32 combat bots 17034 | -1/Command | Spotted Executioner 17034 | -1/Command | Spotted Executioner 17035 | -1/Command | Spotted Striker 17036 | -1/Command | Spotted Executioner 17036 | -1/Command | Spotted Striker 17036 | -1/Command | Spotted Striker 17039 | -1/Command | Spotted Striker 17039 | -1/Command | Spotted Executioner 17039 | -1/Command | Spotted Executioner 17051 | -1/Command | Destroyed Striker 17054 | -1/Command | Destroyed Striker 17057 | -1/Command | Destroyed Striker 17064 | -1/Command | Destroyed Executioner 17070 | -1/Command | Spotted Executioner 17073 | -1/Command | Destroyed Executioner 17073 | -1/Command | Destroyed Striker 17076 | -1/Command | Destroyed Executioner 17080 | -1/Command | Destroyed Executioner 17112 | -1/Command | Destroyed Executioner 17120 | -1/Command | Spotted Executioner 17121 | -1/Command | Destroyed Executioner 17128 | -1/Command | Destroyed Executioner 17155 | -1/Command | Destroyed 34 combat bots 17352 | -1/Command | Spotted Striker 17358 | -1/Command | Destroyed Striker 17358 | -1/Command | Destroyed B-99 Colossus 17388 | -1/Command | Destroyed 10 combat bots 17436 | -1/Command | Spotted Alpha 7 17436 | -1/Command | Spotted Alpha 7 17436 | -1/Command | Spotted Striker 17436 | -1/Command | Spotted Striker 17436 | -1/Command | Spotted Executioner 17436 | -1/Command | Spotted Executioner 17436 | -1/Command | Spotted Executioner 17436 | -1/Command | Spotted Executioner 17446 | -1/Command | Destroyed Striker 17449 | -1/Command | Destroyed Striker 17459 | -1/Command | Destroyed Executioner 17459 | -1/Command | Destroyed Executioner 17462 | -1/Command | Destroyed Executioner 17465 | -1/Command | Destroyed Executioner 17465 | -1/Command | Destroyed Alpha 7 17469 | -1/Command | Spotted B-99 Colossus 17469 | -1/Command | Spotted B-99 Colossus 17472 | -1/Command | Destroyed Alpha 7 17485 | -1/Command | Destroyed B-99 Colossus 17491 | -1/Command | Core integrity fell below 50% 17498 | -1/Command | Destroyed B-99 Colossus 17519 | -1/Command | Destroyed 10 combat bots 17609 | -1/Command | Spotted M Guard 17609 | -1/Command | Spotted M Guard 17609 | -1/Command | Spotted Combat Programmer 17613 | -1/Command | Spotted Combat Programmer 17641 | -1/Command | Destroyed Combat Programmer 17645 | -1/Command | Destroyed Combat Programmer 17770 | -1/Command | Destroyed M Guard 17834 | -1/Command | Destroyed M Guard 17834 | -1/Command | All MAIN.C guards destroyed 17844 | -1/Command | Found Prototype Device 17844 | -1/Command | Identified Thermal Barrier 17848 | -1/Command | Found Prototype Device 17848 | -1/Command | Identified AEGIS Remote Shield 18964 | -1/Command | Found Prototype Protection 18964 | -1/Command | Identified Hvy. Regenerative Plating 19200 | -1/Command | Phase Generator disabled 19266 | -1/Command | Spotted B-99 Colossus 19286 | -1/Command | Destroyed B-99 Colossus 20215 | -1/Command | Found Unknown Protection 20215 | -1/Command | Identified Hvy. Reflective Plating 20600 | -1/Command | Met MAIN.C 20702 | -1/Command | Reached level 39 20761 | -1/Command | Destroyed 39 combat bots 20918 | -1/Command | System corruption reached 10% 20946 | -1/Command | Destroyed 85 combat bots 21036 | -1/Command | Destroyed 13 combat bots 21918 | -1/Command | Destroyed 9 combat bots 21999 | -1/Command | Destroyed 14 combat bots 22229 | -1/Command | Destroyed 53 combat bots 22364 | -1/Command | Destroyed 49 combat bots 22475 | -1/Command | Destroyed 18 combat bots 22536 | -1/Command | Destroyed 11 combat bots 22723 | -1/Command | Destroyed MAIN.C Shell 22726 | -1/Command | MAIN.C activated Command garrisons 22743 | -1/Command | Reached level 40 22743 | -1/Command | Destroyed MAIN.C 22764 | -1/Command | Interfaced with 0b10 Conduit 22764 | *** | Assimilated 0b10! Last Messages --------------- 22740_ Slug penetrates MAIN.C. 22740_ Slug penetrates Reinforced Barrier. 22740_ Slug penetrates MAIN.C. 22740_ Slug penetrates Reinforced Barrier. 22740_ Slug penetrates MAIN.C. 22740_ MAIN.C suffers critical hit. 22740_ Destroyed Prototype Ballistic Gun. 22740_ Slug penetrates MAIN.C. 22740_ Slug penetrates Reinforced Barrier. 22740_ Slug penetrates MAIN.C. 22740_ Slug penetrates Reinforced Barrier. 22743_ Slug penetrates MAIN.C. 22743_ Slug penetrates Reinforced Barrier. 22743_ Slug penetrates MAIN.C. 22743_ MAIN.C: "I hope you know you're still going to DIE HERE WITH ME!" 22743_ Reached level 40. 22743_ MAIN.C destroyed. 22743_ Slug penetrates Reinforced Barrier. 22744_ Acquired 72 matter. 22764_ Interfacing with system... Map ----- +----------------------------------------------------+ | ################################################## | | # ######################################## | | # ######################################## | | # "" ######################################## | | # """" ######################################## | | + """" ######################################## | | # "" ######################################## | | # ######################################## | | # ######################################## | | ################################################## | | # ######################################## | | # ######################################## | | # ######################################## | | # ######################################## | | ###+#####+######################################## | | #### ######""""""" """" ############# | | #### ######"" "" ############# | | #### ######""""" "" ############# | | #### ######""""""""""" + | | #### ######" " """ + | | #### ######"" """""" + | | #### ######"" """""" ############# | | ###### " """""" ############# | | ###### " "" ############# | | ###### " " ""############# | | ######"""""""""@ """""""############# | | ######"" """""""""############# | | ###### """""""""""############# | | ###### " " " " ############# | | ###### " " " " ############# | | " " " """" " ############# | | """ " " """" ############# | | " " " " ############# | | ####+###### """""""""" " ############# | | ## ##### " """ " """"""""############# | | ## ##### """ " " " ############# | | + ####################################### | | ## ####################################### | | ## ## ####################################### | | ## ## ####################################### | | ## ## ####################################### | | ## ## ####################################### | | ## ####################################### | | ###/############################################## | | # ######################################## | | # ######################################## | | # ######################################## | | # "" ######################################## | | # """"######################################## | | # """"######################################## | +----------------------------------------------------+ Best States ------------- Heat Dissipation 115 Energy Generation 118 Energy Capacity 1600 Matter Stores 525 Matter Capacity 525 Sight Range 18 Terrain Scan Density 10 ECM Strength 5 Additional Mass Support 20 EM Shielding 4 Corruption Prevention 12 Heat Shielding 100 Armor Coverage 225 Resistance: KI 20 Resistance: TH 20 Resistance: EX 10 Weapon Cycling 20 Evasion (%) 79 Targeting Accuracy 18 Melee Accuracy 16 Target Analysis 12 Core Analysis 15 Armor Integrity Analysis 66 Recoil Reduction 6 Matter Filtering 30 Energy Filtering 50 Kinecelleration 50 Salvage Targeting 3 Offensive Hacking 10 Defensive Hacking 21 Item Schematics ----------------- None Robot Schematics ------------------ None Fabricated ------------ S-27 Virus | x4 | -7/Factory | Preloaded Imp. System Restoration Module | x1 | -5/Factory B-74 Champion | x3 | -3/Research | Preloaded Alien Tech Used ----------------- Core Reset Matrix Subatomic Replicator Integrated Singularity Reactor Integrated Reactor LRC Matter Compressor Achievements -------------- Left-hand Path Challenges ------------ None RPGLIKE | -11 -10 -10 -9 -9 -9 -8 -8 -7 -7 -7 -7 -7 -6 -5 -4 -4 -4 -4 -4 -3 -3 -2 -2 -2 -1 -1 --------- Run | Scr Mat Min Mat Min Exi Min Mat Fac Was Fac Sto Gar Fac Fac Fac Ext Cet Arc Hub Res Tes Res Qua Sec Acc Com Levels Raised 39 | . . 1 2 2 . 1 2 1 . 2 4 1 2 3 2 2 . . 1 1 2 1 1 1 3 4 XP Earned 61704 | 3000 440 2530 2999 1725 350 2050 2565 2105 200 2654 5878 762 2962 4928 3231 2132 524 247 911 2622 1939 2151 1388 1182 4675 5554 XP Spent 53735 | 2960 . 150 1600 3000 260 1310 3550 1200 225 3000 2880 . 4260 7340 800 4150 . . . 4610 . 3200 4720 300 2610 1610 Upgrades 83 | 13 . 1 2 3 4 4 3 3 1 2 6 . 5 8 1 2 . . . 6 . 1 6 1 4 7 Power Slot 1 | . . . . . . . . . . . . . 1 . . . . . . . . . . . . . Propulsion Slot 5 | 1 . . . . . . . 1 . . . . 1 1 . . . . . 1 . . . . . . Utility Slot 11 | 1 . . 1 2 . . 1 . . 1 . . 1 1 . 1 . . . . . 1 1 . . . Weapon Slot 5 | 1 . . 1 . . . 1 . . . . . . 1 . . . . . 1 . . . . . . Core Integrity 12 | 2 . . . . 2 . . . . . . . . . . . . . . . . . 4 . . 4 Heat Dissipation 15 | 1 . . . . 2 1 . . . . 2 . 2 2 . . . . . 3 . . . . 1 1 Energy Generation 1 | . . . . . . . . . . . . . . . . . . . . . . . . 1 . . Matter Storage 2 | 1 . . . . . . . . 1 . . . . . . . . . . . . . . . . . Mass Support 2 | 1 . . . . . . . . . . . . . . . . . . . . . . . . . 1 Inventory Capacity 6 | 1 . . . 1 . . 1 . . 1 . . . . . 1 . . . . . . . . 1 . Sight Range 2 | 1 . . . . . . . . . . . . . . . . . . . . . . . . 1 . Ranged Accuracy 6 | 1 . . . . . 1 . . . . . . . 2 1 . . . . . . . 1 . . . Hack Attack % 2 | . . . . . . . . 1 . . . . . . . . . . . 1 . . . . . . Hack Defense % 1 | . . . . . . . . 1 . . . . . . . . . . . . . . . . . . KI Resistance % 4 | 1 . . . . . 1 . . . . 2 . . . . . . . . . . . . . . . TH Resistance % 4 | 1 . . . . . 1 . . . . 2 . . . . . . . . . . . . . . . EX Resistance % 2 | . . 1 . . . . . . . . . . . . . . . . . . . . . . . 1 KI Damage % 2 | . . . . . . . . . . . . . . 1 . . . . . . . . . . 1 . Protomatter Created 15528 | . 42 180 92 98 . 194 100 52 177 280 829 141 308 317 414 557 194 82 305 816 582 249 126 371 1875 7147 Integrity Restored 21825 | . 118 415 404 294 87 582 185 242 1 491 1380 495 561 1462 930 1112 310 134 101 1288 1426 676 471 685 1730 6245 Core 16009 | . 104 309 328 140 87 531 38 187 . 340 1105 388 453 1273 578 746 152 102 80 947 720 531 375 501 1245 4749 Parts 5816 | . 14 106 76 154 . 51 147 55 1 151 275 107 108 189 352 366 158 32 21 341 706 145 96 184 485 1496 Protomatter Decayed 11611 | . . 58 . 9 281 . . 41 88 152 879 32 110 . . 299 76 . 102 2595 755 26 21 132 1062 4893 Game ------ Seed MatterSystemMediator Manual? 0 Play Time 04:40:40 Cumulative 469.2 hours Start 2021.06.26 @ 00:45:15 End 2021.06.26 @ 10:53:08 Sessions 3 Manual Loads 0 Difficulty Rogue Special Mode Winter2019/RPGLIKE Game No. 172 Rogue 172 Adventurer 0 Explorer 0 Win Type 4 Total 36 Types 24/2/5/2/2/0/0/0/1 Lore% 85 Gallery% 92 Achievement% 81 Wizard Run 0 Options --------- ASCII 0 Keyboard 0 Movement Mouse Keybinds 0 Fullscreen 2 Font 12/Smallcaps Map View 83x54 Tactical HUD 1 Map Filters NONE Filters NONE Steam X RUN: 78899eb9-a563-4ef5-b2e9-5365cf653384